Workbook

Sheet Namen (hidden)
A1: Opdrachtgever | B1: Uitvoerder
A2: P. BONTE | B2: sebo
A3: B. KAHN | B3: Azad
A4: P. SWENTERS | B4: Bruno
A5: T. GURBUZ | B5: Marc
A6: R. SMET | B6: Ramazan
A7: C. DOYEN | B7: Wesley
A8: D. VAN KAMPEN | B8: Hassan
A9: E. JASPERS | B9: Mohamed
A10: E. VAN SPAENDONK | B10: Daniel
A11: J. DECKERS | B11: Chris M.
A12: M. MEYS | B12: David H
A13: M. WILLEMEN | B13: Kenneth
A14: S. ROEVENS | B14: Manuel
A15: H. VERSONNEN | B15: Luc
B16: Chrif
B17: Galid
B18: Ben

Sheet Provisie
D1: 7 | E1: 7 | F1: 7
B2: Prestaties | C2: Materiaal | D2: Totaal
A3: W1 | B3: 0 | C3: 0 | D3: 0 | H3: Wanneer er wijzigingen gebeuren in tabblad W1 Tot en met W52 zal bij het selecteren van tabblad Provisie
A4: W2 | B4: 1726.01 | C4: 0 | D4: 1726.01 | H4: macro UpdateX al de totalen van de week bladen opzoeken en in de rooster provisie plaatsen,
A5: W3 | B5: 1270.06 | C5: 0 | D5: 1270.06 | H5: nu kan je verder zonder iets te veranderen
A6: W4 | B6: 0 | C6: 0 | D6: 0 | H6: Macro
A7: W5
A8: W6 | H8: Sub UpdateX()
A9: W7 | H9: On Error Resume Next
A10: W8 | H10: Dim sq
A11: W9 | H11: Blad2.Range("B3:D55").ClearContents
A12: W10 | H12: With Blad2
A13: W11 | H13: For Each cl In .Range("A3:A55")
A14: W12 | H14: Shn = cl.Value
A15: W13 | H15: sq = ""
A16: W14
A17: W15 | H17: sq = Array(Sheets(Shn).Range("M7").Value, Sheets(Shn).Range("S7").Value, Sheets(Shn).Range("T7").Value)
A18: W16 | H18: .Cells(cl.Row, 1).Offset(0, 1).Resize(1, 3).Value = sq
A19: W17
A20: W18
A21: W19 | H21: Next
A22: W20 | H22: End With
A23: W21 | H23: End Sub
A24: W22
A25: W23
A26: W24
A27: W25
A28: W26 | M28: Dit mag je verwijderen
A29: W27
A30: W28
A31: W29
A32: W30
A33: W31
A34: W32
A35: W33
A36: W34
A37: W35
A38: W36
A39: W37
A40: W38
A41: W39
A42: W40
A43: W41
A44: W42
A45: W43
A46: W44
A47: W45
A48: W46
A49: W47
A50: W48
A51: W49
A52: W50
A53: W51
A54: W52

Sheet Blanco
A1: DAGRAPPORTAGE ANTWERPEN | F1: 2019
N2: nog geen ordernummer gekregen | Q2: prijs nog in te vullen door OBM
N3: vordering nog op te maken | Q3: verkeerd ordernummer
A4: WEEK: | B4: 1 | E4: =DATE(F1,1,1)+7*B4-WEEKDAY(DATE(F1,1,1),2)-6 -> 2018-12-31 | F4: =DATE(F1,1,1)+7*B4-WEEKDAY(DATE(F1,1,1),2)-2 -> 2019-01-04 | N4: vordering opgemaakt en doorgestuurd | Q4: SBI aangekregen
Q5: Toeslag AES materialen EP < €5
M7: =SUM(M9:M283) -> 0 | S7: =SUM(S9:S283) -> 0 | T7: =SUM(T9:T283) -> 0
A8: Datum | B8: Interventie NR | C8: Bouw | D8: Bnr | E8: Opdrachtgever | F8: Omschrijving uitgevoerde werken | G8: Ordernummer | H8: Vordering | I8: Naam | J8: # | K8: uur | L8: Tot. uren | M8: Prijs uren | N8: Materiaal | O8: # | P8: Eenheid | Q8: Eenheidsprijs | R8: Totaal prijs | S8: Som materiaal | T8: Totaal uren en materiaal
C9: Bouw | K9: uur | L9: =SUM(J9:J13) -> 0 | M9: =L9*57.73 -> 0 | R9: =O9*Q9 -> 0 | S9: =SUM(R9:R12) -> 0 | T9: =SUM(M9,S9) -> 0
K10: uur | R10: =O10*Q10 -> 0
K11: uur | R11: 0
K12: uur | R12: 0
K13: uur | R13: 0
C14: Bouw | K14: uur | L14: =SUM(J14:J18) -> 0 | M14: =L14*57.73 -> 0 | R14: 0 | S14: =SUM(R14:R18) -> 0 | T14: =SUM(M14,S14) -> 0
K15: uur | R15: 0
K16: uur | R16: 0
K17: uur | R17: 0
K18: uur | R18: 0
C19: Bouw | K19: uur | L19: =SUM(J19:J23) -> 0 | M19: =L19*57.73 -> 0 | R19: 0 | S19: =SUM(R19:R23) -> 0 | T19: =SUM(M19,S19) -> 0
K20: uur | R20: 0
K21: uur | R21: 0
K22: uur | R22: 0
K23: uur | R23: 0
C24: Bouw | K24: uur | L24: =SUM(J24:J28) -> 0 | M24: =L24*57.73 -> 0 | R24: 0 | S24: =SUM(R24:R28) -> 0 | T24: =SUM(M24,S24) -> 0
K25: uur | R25: 0
K26: uur | R26: 0
K27: uur | R27: 0
K28: uur | R28: 0
C29: Bouw | K29: uur | L29: =SUM(J29:J33) -> 0 | M29: =L29*57.73 -> 0 | R29: 0 | S29: =SUM(R29:R33) -> 0 | T29: =SUM(M29,S29) -> 0
K30: uur | R30: 0
K31: uur | R31: 0
K32: uur | R32: 0
K33: uur | R33: 0
C34: Bouw | K34: uur | L34: =SUM(J34:J38) -> 0 | M34: =L34*57.73 -> 0 | R34: 0 | S34: =SUM(R34:R38) -> 0 | T34: =SUM(M34,S34) -> 0
K35: uur | R35: 0
K36: uur | R36: 0
K37: uur | R37: 0
K38: uur | R38: 0
C39: Bouw | K39: uur | L39: =SUM(J39:J43) -> 0 | M39: =L39*57.73 -> 0 | R39: 0 | S39: =SUM(R39:R43) -> 0 | T39: =SUM(M39,S39) -> 0
K40: uur | R40: 0
K41: uur | R41: 0
K42: uur | R42: 0
K43: uur | R43: 0
C44: Bouw | K44: uur | L44: =SUM(J44:J48) -> 0 | M44: =L44*57.73 -> 0 | R44: 0 | S44: =SUM(R44:R48) -> 0 | T44: =SUM(M44,S44) -> 0
K45: uur | R45: 0
K46: uur | R46: 0
K47: uur | R47: 0
K48: uur | R48: 0
C49: Bouw | K49: uur | L49: =SUM(J49:J53) -> 0 | M49: =L49*57.73 -> 0 | R49: 0 | S49: =SUM(R49:R53) -> 0 | T49: =SUM(M49,S49) -> 0
K50: uur | R50: 0
K51: uur | R51: 0
K52: uur | R52: 0
K53: uur | R53: 0
C54: Bouw | K54: uur | L54: =SUM(J54:J58) -> 0 | M54: =L54*57.73 -> 0 | R54: 0 | S54: =SUM(R54:R58) -> 0 | T54: =SUM(M54,S54) -> 0
K55: uur | R55: 0
K56: uur | R56: 0
K57: uur | R57: 0
K58: uur | R58: 0
C59: Bouw | K59: uur | L59: =SUM(J59:J63) -> 0 | M59: =L59*57.73 -> 0 | R59: 0 | S59: =SUM(R59:R63) -> 0 | T59: =SUM(M59,S59) -> 0
K60: uur | R60: 0
K61: uur | R61: 0
K62: uur | R62: 0
K63: uur | R63: 0
C64: Bouw | K64: uur | L64: =SUM(J64:J68) -> 0 | M64: =L64*57.73 -> 0 | R64: 0 | S64: =SUM(R64:R68) -> 0 | T64: =SUM(M64,S64) -> 0
K65: uur | R65: 0
K66: uur | R66: 0
K67: uur | R67: 0
K68: uur | R68: 0
C69: Bouw | K69: uur | L69: =SUM(J69:J73) -> 0 | M69: =L69*57.73 -> 0 | R69: 0 | S69: =SUM(R69:R73) -> 0 | T69: =SUM(M69,S69) -> 0
K70: uur | R70: 0
K71: uur | R71: 0
K72: uur | R72: 0
K73: uur | R73: 0
C74: Bouw | K74: uur | L74: =SUM(J74:J78) -> 0 | M74: =L74*57.73 -> 0 | R74: =O74*Q74 -> 0 | S74: =SUM(R74:R78) -> 0 | T74: =SUM(M74,S74) -> 0
K75: uur | R75: 0
K76: uur | R76: 0
K77: uur | R77: 0
K78: uur | R78: 0
C79: Bouw | K79: uur | L79: =SUM(J79:J83) -> 0 | M79: =L79*57.73 -> 0 | R79: 0 | S79: =SUM(R79:R83) -> 0 | T79: =SUM(M79,S79) -> 0
K80: uur | R80: 0
K81: uur | R81: 0
K82: uur | R82: 0
K83: uur | R83: 0
C84: Bouw | K84: uur | L84: =SUM(J84:J88) -> 0 | M84: =L84*57.73 -> 0 | R84: 0 | S84: =SUM(R84:R88) -> 0 | T84: =SUM(M84,S84) -> 0
K85: uur | R85: 0
K86: uur | R86: 0
K87: uur | R87: 0
K88: uur | R88: 0
C89: Bouw | K89: uur | L89: =SUM(J89:J93) -> 0 | M89: =L89*57.73 -> 0 | R89: 0 | S89: =SUM(R89:R93) -> 0 | T89: =SUM(M89,S89) -> 0
K90: uur | R90: 0
K91: uur | R91: 0
K92: uur | R92: 0
K93: uur | R93: 0
C94: Bouw | K94: uur | L94: =SUM(J94:J98) -> 0 | M94: =L94*57.73 -> 0 | R94: 0 | S94: =SUM(R94:R98) -> 0 | T94: =SUM(M94,S94) -> 0
K95: uur | R95: 0
K96: uur | R96: 0
K97: uur | R97: 0
K98: uur | R98: 0
C99: Bouw | K99: uur | L99: =SUM(J99:J103) -> 0 | M99: =L99*57.73 -> 0 | R99: 0 | S99: =SUM(R99:R103) -> 0 | T99: =SUM(M99,S99) -> 0
K100: uur | R100: 0
K101: uur | R101: 0
K102: uur | R102: 0
K103: uur | R103: 0
C104: Bouw | K104: uur | L104: =SUM(J104:J108) -> 0 | M104: =L104*57.73 -> 0 | R104: 0 | S104: =SUM(R104:R108) -> 0 | T104: =SUM(M104,S104) -> 0
K105: uur | R105: 0
K106: uur | R106: 0
K107: uur | R107: 0
K108: uur | R108: 0
C109: Bouw | K109: uur | L109: =SUM(J109:J113) -> 0 | M109: =L109*57.73 -> 0 | R109: 0 | S109: =SUM(R109:R113) -> 0 | T109: =SUM(M109,S109) -> 0
K110: uur | R110: 0
K111: uur | R111: 0
K112: uur | R112: 0
K113: uur | R113: 0
C114: Bouw | K114: uur | L114: =SUM(J114:J118) -> 0 | M114: =L114*57.73 -> 0 | R114: 0 | S114: =SUM(R114:R118) -> 0 | T114: =SUM(M114,S114) -> 0
K115: uur | R115: 0
K116: uur | R116: 0
K117: uur | R117: 0
K118: uur | R118: 0
C119: Bouw | K119: uur | L119: =SUM(J119:J123) -> 0 | M119: =L119*57.73 -> 0 | R119: 0 | S119: =SUM(R119:R123) -> 0 | T119: =SUM(M119,S119) -> 0
K120: uur | R120: 0
K121: uur | R121: 0
K122: uur | R122: 0
K123: uur | R123: 0
C124: Bouw | K124: uur | L124: =SUM(J124:J128) -> 0 | M124: =L124*57.73 -> 0 | R124: 0 | S124: =SUM(R124:R128) -> 0 | T124: =SUM(M124,S124) -> 0
K125: uur | R125: 0
K126: uur | R126: 0
K127: uur | R127: 0
K128: uur | R128: 0
C129: Bouw | K129: uur | L129: =SUM(J129:J133) -> 0 | M129: 0 | R129: 0 | S129: =SUM(R129:R133) -> 0 | T129: =SUM(M129,S129) -> 0
K130: uur | R130: 0
K131: uur | R131: 0
K132: uur | R132: 0
K133: uur | R133: 0
C134: Bouw | K134: uur | L134: =SUM(J134:J138) -> 0 | M134: 0 | R134: 0 | S134: =SUM(R134:R138) -> 0 | T134: =SUM(M134,S134) -> 0
K135: uur | R135: 0
K136: uur | R136: 0
K137: uur | R137: 0
K138: uur | R138: =O138*Q138 -> 0
C139: Bouw | K139: uur | L139: =SUM(J139:J143) -> 0 | M139: 0 | R139: 0 | S139: =SUM(R139:R143) -> 0 | T139: =SUM(M139,S139) -> 0
K140: uur | R140: 0
K141: uur | R141: 0
K142: uur | R142: 0
K143: uur | R143: 0
C144: Bouw | K144: uur | L144: 0 | M144: =L144*57.73 -> 0 | R144: 0 | S144: 0 | T144: 0
K145: uur | R145: 0
K146: uur | R146: 0
K147: uur | R147: 0
K148: uur | R148: 0
C149: Bouw | K149: uur | L149: 0 | M149: =L149*57.73 -> 0 | R149: 0 | S149: 0 | T149: 0
K150: uur | R150: 0
K151: uur | R151: 0
K152: uur | R152: 0
K153: uur | R153: 0
C154: Bouw | K154: uur | L154: 0 | M154: =L154*57.73 -> 0 | R154: 0 | S154: 0 | T154: 0
K155: uur | R155: 0
K156: uur | R156: 0
K157: uur | R157: 0
K158: uur | R158: 0
C159: Bouw | K159: uur | L159: 0 | M159: =L159*57.73 -> 0 | R159: 0 | S159: 0 | T159: 0
K160: uur | R160: 0
K161: uur | R161: 0
K162: uur | R162: 0
K163: uur | R163: 0
C164: Bouw | K164: uur | L164: 0 | M164: =L164*57.73 -> 0 | R164: 0 | S164: 0 | T164: 0
K165: uur | R165: 0
K166: uur | R166: 0
K167: uur | R167: 0
K168: uur | R168: 0
C169: Bouw | K169: uur | L169: 0 | M169: =L169*57.73 -> 0 | R169: 0 | S169: 0 | T169: 0
K170: uur | R170: 0
K171: uur | R171: 0
K172: uur | R172: 0
K173: uur | R173: 0
C174: Bouw | K174: uur | L174: 0 | M174: =L174*57.73 -> 0 | R174: 0 | S174: 0 | T174: 0
K175: uur | R175: 0
K176: uur | R176: 0
K177: uur | R177: 0
K178: uur | R178: 0
C179: Bouw | K179: uur | L179: =SUM(J179:J183) -> 0 | M179: =L179*57.73 -> 0 | R179: 0 | S179: =SUM(R179:R183) -> 0 | T179: =SUM(M179,S179) -> 0
K180: uur | R180: 0
K181: uur | R181: 0
K182: uur | R182: 0
K183: uur | R183: 0
C184: Bouw | K184: uur | L184: =SUM(J184:J188) -> 0 | M184: =L184*57.73 -> 0 | R184: 0 | S184: =SUM(R184:R188) -> 0 | T184: =SUM(M184,S184) -> 0
K185: uur | R185: 0
K186: uur | R186: 0
K187: uur | R187: 0
K188: uur | R188: 0
C189: Bouw | K189: uur | L189: =SUM(J189:J193) -> 0 | M189: =L189*57.73 -> 0 | R189: 0 | S189: =SUM(R189:R193) -> 0 | T189: =SUM(M189,S189) -> 0
K190: uur | R190: 0
K191: uur | R191: 0
K192: uur | R192: 0
K193: uur | R193: 0
C194: Bouw | K194: uur | L194: =SUM(J194:J198) -> 0 | M194: =L194*57.73 -> 0 | R194: 0 | S194: =SUM(R194:R198) -> 0 | T194: =SUM(M194,S194) -> 0
K195: uur | R195: 0
K196: uur | R196: 0
K197: uur | R197: 0
K198: uur | R198: 0
C199: Bouw | K199: uur | L199: =SUM(J199:J203) -> 0 | M199: =L199*57.73 -> 0 | R199: 0 | S199: =SUM(R199:R203) -> 0 | T199: =SUM(M199,S199) -> 0
K200: uur | R200: 0
K201: uur | R201: 0
... 82 more rows

Sheet W1
A1: DAGRAPPORTAGE ANTWERPEN | F1: 2019
N2: nog geen ordernummer gekregen | Q2: prijs nog in te vullen door OBM
N3: vordering nog op te maken | Q3: verkeerd ordernummer
A4: WEEK: | B4: 1 | E4: =DATE(F1,1,1)+7*B4-WEEKDAY(DATE(F1,1,1),2)-6 -> 2018-12-31 | F4: =DATE(F1,1,1)+7*B4-WEEKDAY(DATE(F1,1,1),2)-2 -> 2019-01-04 | N4: vordering opgemaakt en doorgestuurd | Q4: SBI aangekregen
F5: Geen prestaties | Q5: Toeslag AES materialen EP < €5
M7: =SUM(M9:M283) -> 0 | S7: =SUM(S9:S283) -> 0 | T7: =SUM(T9:T283) -> 0
A8: Datum | B8: Interventie NR | C8: Bouw | D8: Bnr | E8: Opdrachtgever | F8: Omschrijving uitgevoerde werken | G8: Ordernummer | H8: Vordering | I8: Naam | J8: # | K8: uur | L8: Tot. uren | M8: Prijs uren | N8: Materiaal | O8: # | P8: Eenheid | Q8: Eenheidsprijs | R8: Totaal prijs | S8: Som materiaal | T8: Totaal uren en materiaal
C9: Bouw | K9: uur | L9: =SUM(J9:J13) -> 0 | M9: =L9*57.73 -> 0 | R9: =O9*Q9 -> 0 | S9: =SUM(R9:R12) -> 0 | T9: =SUM(M9,S9) -> 0
K10: uur | R10: =O10*Q10 -> 0
K11: uur | R11: 0
K12: uur | R12: 0
K13: uur | R13: 0
C14: Bouw | K14: uur | L14: =SUM(J14:J18) -> 0 | M14: =L14*57.73 -> 0 | R14: 0 | S14: =SUM(R14:R18) -> 0 | T14: =SUM(M14,S14) -> 0
K15: uur | R15: 0
K16: uur | R16: 0
K17: uur | R17: 0
K18: uur | R18: 0
C19: Bouw | K19: uur | L19: =SUM(J19:J23) -> 0 | M19: =L19*57.73 -> 0 | R19: 0 | S19: =SUM(R19:R23) -> 0 | T19: =SUM(M19,S19) -> 0
K20: uur | R20: 0
K21: uur | R21: 0
K22: uur | R22: 0
K23: uur | R23: 0
C24: Bouw | K24: uur | L24: =SUM(J24:J28) -> 0 | M24: =L24*57.73 -> 0 | R24: 0 | S24: =SUM(R24:R28) -> 0 | T24: =SUM(M24,S24) -> 0
K25: uur | R25: 0
K26: uur | R26: 0
K27: uur | R27: 0
K28: uur | R28: 0
C29: Bouw | K29: uur | L29: =SUM(J29:J33) -> 0 | M29: =L29*57.73 -> 0 | R29: 0 | S29: =SUM(R29:R33) -> 0 | T29: =SUM(M29,S29) -> 0
K30: uur | R30: 0
K31: uur | R31: 0
K32: uur | R32: 0
K33: uur | R33: 0
C34: Bouw | K34: uur | L34: =SUM(J34:J38) -> 0 | M34: =L34*57.73 -> 0 | R34: 0 | S34: =SUM(R34:R38) -> 0 | T34: =SUM(M34,S34) -> 0
K35: uur | R35: 0
K36: uur | R36: 0
K37: uur | R37: 0
K38: uur | R38: 0
C39: Bouw | K39: uur | L39: =SUM(J39:J43) -> 0 | M39: =L39*57.73 -> 0 | R39: 0 | S39: =SUM(R39:R43) -> 0 | T39: =SUM(M39,S39) -> 0
K40: uur | R40: 0
K41: uur | R41: 0
K42: uur | R42: 0
K43: uur | R43: 0
C44: Bouw | K44: uur | L44: =SUM(J44:J48) -> 0 | M44: =L44*57.73 -> 0 | R44: 0 | S44: =SUM(R44:R48) -> 0 | T44: =SUM(M44,S44) -> 0
K45: uur | R45: 0
K46: uur | R46: 0
K47: uur | R47: 0
K48: uur | R48: 0
C49: Bouw | K49: uur | L49: =SUM(J49:J53) -> 0 | M49: =L49*57.73 -> 0 | R49: 0 | S49: =SUM(R49:R53) -> 0 | T49: =SUM(M49,S49) -> 0
K50: uur | R50: 0
K51: uur | R51: 0
K52: uur | R52: 0
K53: uur | R53: 0
C54: Bouw | K54: uur | L54: =SUM(J54:J58) -> 0 | M54: =L54*57.73 -> 0 | R54: 0 | S54: =SUM(R54:R58) -> 0 | T54: =SUM(M54,S54) -> 0
K55: uur | R55: 0
K56: uur | R56: 0
K57: uur | R57: 0
K58: uur | R58: 0
C59: Bouw | K59: uur | L59: =SUM(J59:J63) -> 0 | M59: =L59*57.73 -> 0 | R59: 0 | S59: =SUM(R59:R63) -> 0 | T59: =SUM(M59,S59) -> 0
K60: uur | R60: 0
K61: uur | R61: 0
K62: uur | R62: 0
K63: uur | R63: 0
C64: Bouw | K64: uur | L64: =SUM(J64:J68) -> 0 | M64: =L64*57.73 -> 0 | R64: 0 | S64: =SUM(R64:R68) -> 0 | T64: =SUM(M64,S64) -> 0
K65: uur | R65: 0
K66: uur | R66: 0
K67: uur | R67: 0
K68: uur | R68: 0
C69: Bouw | K69: uur | L69: =SUM(J69:J73) -> 0 | M69: =L69*57.73 -> 0 | R69: 0 | S69: =SUM(R69:R73) -> 0 | T69: =SUM(M69,S69) -> 0
K70: uur | R70: 0
K71: uur | R71: 0
K72: uur | R72: 0
K73: uur | R73: 0
C74: Bouw | K74: uur | L74: =SUM(J74:J78) -> 0 | M74: =L74*57.73 -> 0 | R74: =O74*Q74 -> 0 | S74: =SUM(R74:R78) -> 0 | T74: =SUM(M74,S74) -> 0
K75: uur | R75: 0
K76: uur | R76: 0
K77: uur | R77: 0
K78: uur | R78: 0
C79: Bouw | K79: uur | L79: =SUM(J79:J83) -> 0 | M79: =L79*57.73 -> 0 | R79: 0 | S79: =SUM(R79:R83) -> 0 | T79: =SUM(M79,S79) -> 0
K80: uur | R80: 0
K81: uur | R81: 0
K82: uur | R82: 0
K83: uur | R83: 0
C84: Bouw | K84: uur | L84: =SUM(J84:J88) -> 0 | M84: =L84*57.73 -> 0 | R84: 0 | S84: =SUM(R84:R88) -> 0 | T84: =SUM(M84,S84) -> 0
K85: uur | R85: 0
K86: uur | R86: 0
K87: uur | R87: 0
K88: uur | R88: 0
C89: Bouw | K89: uur | L89: =SUM(J89:J93) -> 0 | M89: =L89*57.73 -> 0 | R89: 0 | S89: =SUM(R89:R93) -> 0 | T89: =SUM(M89,S89) -> 0
K90: uur | R90: 0
K91: uur | R91: 0
K92: uur | R92: 0
K93: uur | R93: 0
C94: Bouw | K94: uur | L94: =SUM(J94:J98) -> 0 | M94: =L94*57.73 -> 0 | R94: 0 | S94: =SUM(R94:R98) -> 0 | T94: =SUM(M94,S94) -> 0
K95: uur | R95: 0
K96: uur | R96: 0
K97: uur | R97: 0
K98: uur | R98: 0
C99: Bouw | K99: uur | L99: =SUM(J99:J103) -> 0 | M99: =L99*57.73 -> 0 | R99: 0 | S99: =SUM(R99:R103) -> 0 | T99: =SUM(M99,S99) -> 0
K100: uur | R100: 0
K101: uur | R101: 0
K102: uur | R102: 0
K103: uur | R103: 0
C104: Bouw | K104: uur | L104: =SUM(J104:J108) -> 0 | M104: =L104*57.73 -> 0 | R104: 0 | S104: =SUM(R104:R108) -> 0 | T104: =SUM(M104,S104) -> 0
K105: uur | R105: 0
K106: uur | R106: 0
K107: uur | R107: 0
K108: uur | R108: 0
C109: Bouw | K109: uur | L109: =SUM(J109:J113) -> 0 | M109: =L109*57.73 -> 0 | R109: 0 | S109: =SUM(R109:R113) -> 0 | T109: =SUM(M109,S109) -> 0
K110: uur | R110: 0
K111: uur | R111: 0
K112: uur | R112: 0
K113: uur | R113: 0
C114: Bouw | K114: uur | L114: =SUM(J114:J118) -> 0 | M114: =L114*57.73 -> 0 | R114: 0 | S114: =SUM(R114:R118) -> 0 | T114: =SUM(M114,S114) -> 0
K115: uur | R115: 0
K116: uur | R116: 0
K117: uur | R117: 0
K118: uur | R118: 0
C119: Bouw | K119: uur | L119: =SUM(J119:J123) -> 0 | M119: =L119*57.73 -> 0 | R119: 0 | S119: =SUM(R119:R123) -> 0 | T119: =SUM(M119,S119) -> 0
K120: uur | R120: 0
K121: uur | R121: 0
K122: uur | R122: 0
K123: uur | R123: 0
C124: Bouw | K124: uur | L124: =SUM(J124:J128) -> 0 | M124: =L124*57.73 -> 0 | R124: 0 | S124: =SUM(R124:R128) -> 0 | T124: =SUM(M124,S124) -> 0
K125: uur | R125: 0
K126: uur | R126: 0
K127: uur | R127: 0
K128: uur | R128: 0
C129: Bouw | K129: uur | L129: =SUM(J129:J133) -> 0 | M129: 0 | R129: 0 | S129: =SUM(R129:R133) -> 0 | T129: =SUM(M129,S129) -> 0
K130: uur | R130: 0
K131: uur | R131: 0
K132: uur | R132: 0
K133: uur | R133: 0
C134: Bouw | K134: uur | L134: =SUM(J134:J138) -> 0 | M134: 0 | R134: 0 | S134: =SUM(R134:R138) -> 0 | T134: =SUM(M134,S134) -> 0
K135: uur | R135: 0
K136: uur | R136: 0
K137: uur | R137: 0
K138: uur | R138: =O138*Q138 -> 0
C139: Bouw | K139: uur | L139: =SUM(J139:J143) -> 0 | M139: 0 | R139: 0 | S139: =SUM(R139:R143) -> 0 | T139: =SUM(M139,S139) -> 0
K140: uur | R140: 0
K141: uur | R141: 0
K142: uur | R142: 0
K143: uur | R143: 0
C144: Bouw | K144: uur | L144: 0 | M144: =L144*57.73 -> 0 | R144: 0 | S144: 0 | T144: 0
K145: uur | R145: 0
K146: uur | R146: 0
K147: uur | R147: 0
K148: uur | R148: 0
C149: Bouw | K149: uur | L149: 0 | M149: =L149*57.73 -> 0 | R149: 0 | S149: 0 | T149: 0
K150: uur | R150: 0
K151: uur | R151: 0
K152: uur | R152: 0
K153: uur | R153: 0
C154: Bouw | K154: uur | L154: 0 | M154: =L154*57.73 -> 0 | R154: 0 | S154: 0 | T154: 0
K155: uur | R155: 0
K156: uur | R156: 0
K157: uur | R157: 0
K158: uur | R158: 0
C159: Bouw | K159: uur | L159: 0 | M159: =L159*57.73 -> 0 | R159: 0 | S159: 0 | T159: 0
K160: uur | R160: 0
K161: uur | R161: 0
K162: uur | R162: 0
K163: uur | R163: 0
C164: Bouw | K164: uur | L164: 0 | M164: =L164*57.73 -> 0 | R164: 0 | S164: 0 | T164: 0
K165: uur | R165: 0
K166: uur | R166: 0
K167: uur | R167: 0
K168: uur | R168: 0
C169: Bouw | K169: uur | L169: 0 | M169: =L169*57.73 -> 0 | R169: 0 | S169: 0 | T169: 0
K170: uur | R170: 0
K171: uur | R171: 0
K172: uur | R172: 0
K173: uur | R173: 0
C174: Bouw | K174: uur | L174: 0 | M174: =L174*57.73 -> 0 | R174: 0 | S174: 0 | T174: 0
K175: uur | R175: 0
K176: uur | R176: 0
K177: uur | R177: 0
K178: uur | R178: 0
C179: Bouw | K179: uur | L179: =SUM(J179:J183) -> 0 | M179: =L179*57.73 -> 0 | R179: 0 | S179: =SUM(R179:R183) -> 0 | T179: =SUM(M179,S179) -> 0
K180: uur | R180: 0
K181: uur | R181: 0
K182: uur | R182: 0
K183: uur | R183: 0
C184: Bouw | K184: uur | L184: =SUM(J184:J188) -> 0 | M184: =L184*57.73 -> 0 | R184: 0 | S184: =SUM(R184:R188) -> 0 | T184: =SUM(M184,S184) -> 0
K185: uur | R185: 0
K186: uur | R186: 0
K187: uur | R187: 0
K188: uur | R188: 0
C189: Bouw | K189: uur | L189: =SUM(J189:J193) -> 0 | M189: =L189*57.73 -> 0 | R189: 0 | S189: =SUM(R189:R193) -> 0 | T189: =SUM(M189,S189) -> 0
K190: uur | R190: 0
K191: uur | R191: 0
K192: uur | R192: 0
K193: uur | R193: 0
C194: Bouw | K194: uur | L194: =SUM(J194:J198) -> 0 | M194: =L194*57.73 -> 0 | R194: 0 | S194: =SUM(R194:R198) -> 0 | T194: =SUM(M194,S194) -> 0
K195: uur | R195: 0
K196: uur | R196: 0
K197: uur | R197: 0
K198: uur | R198: 0
C199: Bouw | K199: uur | L199: =SUM(J199:J203) -> 0 | M199: =L199*57.73 -> 0 | R199: 0 | S199: =SUM(R199:R203) -> 0 | T199: =SUM(M199,S199) -> 0
K200: uur | R200: 0
K201: uur | R201: 0
... 82 more rows

Sheet W2
A1: DAGRAPPORTAGE ANTWERPEN | F1: 2019
N2: nog geen ordernummer gekregen | Q2: prijs nog in te vullen door OBM
N3: vordering nog op te maken | Q3: verkeerd ordernummer
A4: WEEK: | B4: 2 | E4: =DATE(F1,1,1)+7*B4-WEEKDAY(DATE(F1,1,1),2)-6 -> 2019-01-07 | F4: =DATE(F1,1,1)+7*B4-WEEKDAY(DATE(F1,1,1),2)-2 -> 2019-01-11 | N4: vordering opgemaakt en doorgestuurd | Q4: SBI aangekregen
Q5: Toeslag AES materialen EP < €5
M7: =SUM(M9:M21) -> 1726.01 | S7: =SUM(S9:S19) -> 0 | T7: =SUM(T9:T21) -> 1726.01
A8: Datum | B8: Interventie NR | C8: Bouw | D8: Bnr | E8: Opdrachtgever | F8: Omschrijving uitgevoerde werken | G8: Ordernummer | H8: Vordering | I8: Naam | J8: # | K8: uur | L8: Tot. uren | M8: Prijs uren | N8: Materiaal | O8: # | P8: Eenheid | Q8: Eenheidsprijs | R8: Totaal prijs | S8: Som materiaal | T8: Totaal uren en materiaal
A9: 2019-01-07 | B9: 211017 | C9: HVAC | D9: 6348 | E9: T. GURBUZ | F9: Klimaatkast controleren op lekken | G9: 2413050711 | I9: Brahim | J9: 8 | K9: uur | L9: 8 | M9: =SUM(L9*57.73) -> 461.84 | R9: 0 | S9: 0 | T9: =SUM(M9:S9) -> 461.84
K10: uur | R10: 0
A11: 2019-01-09 | B11: 211647 | C11: HVAC | D11: 6331 | E11: T. GURBUZ | F11: Draai richting van koelkast veranderen lokaal 116 | G11: 2413043477 | I11: Brahim | J11: 2 | K11: uur | L11: 3 | M11: =SUM(L11*57.73) -> 173.19 | R11: 0 | S11: 0 | T11: =SUM(M11:S11) -> 173.19
I12: Paul | J12: 1 | K12: uur | R12: 0
A13: 2019-01-09 | B13: 208342 | C13: HVAC | D13: 8295 | E13: T. GURBUZ | F13: Afsluiten van stoomleiding van warme luchtblazer | G13: 2412817812 | H13: 60 | I13: Brahim | J13: 2 | K13: uur | L13: 2 | M13: =SUM(L13*57.35) -> 114.7 | R13: 0 | S13: 0 | T13: =SUM(M13:S13) -> 114.7
K14: uur | R14: 0
A15: 2019-01-10 | B15: 211017 | C15: HVAC | D15: 6348 | E15: T. GURBUZ | F15: Klimaatkast controleren op lekken | G15: 2413050711 | I15: Brahim | J15: 3.5 | K15: uur | L15: 3.5 | M15: =SUM(L15*57.73) -> 202.055 | R15: 0 | S15: 0 | T15: =SUM(M15:S15) -> 202.055
K16: uur | R16: 0
A17: 2019-01-10 | B17: 206756 | C17: HVAC | D17: 8262 | E17: T. GURBUZ | F17: Vervangen van automatische ontluchter + verwijderen VK | G17: 2412817812 | H17: 60 | I17: Brahim | J17: 4 | K17: uur | L17: 9 | M17: =SUM(L17*57.35) -> 516.15 | R17: 0 | S17: 0 | T17: =SUM(M17:S17) -> 516.15
I18: Frederik | J18: 4 | K18: uur | R18: 0
I19: Paul | J19: 1 | K19: uur | R19: 0
A20: 2019-01-10 | B20: 207311 | C20: HVAC | D20: 8265 | E20: T.GURBUZ | F20: Vervangen klepregister | G20: 2412817812 | H20: 60 | I20: Jelle | J20: 3.5 | K20: uur | L20: 4.5 | M20: =SUM(L20*57.35) -> 258.075 | R20: 0 | S20: 0 | T20: =SUM(M20:S20) -> 258.075
I21: Wim | J21: 1 | K21: uur | R21: 0
B24: Ingeput in AES navraag uurtarief

Sheet W3
A1: DAGRAPPORTAGE ANTWERPEN | F1: 2019
N2: nog geen ordernummer gekregen | Q2: prijs nog in te vullen door OBM
N3: vordering nog op te maken | Q3: verkeerd ordernummer
A4: WEEK: | B4: 3 | E4: =DATE(F1,1,1)+7*B4-WEEKDAY(DATE(F1,1,1),2)-6 -> 2019-01-14 | F4: =DATE(F1,1,1)+7*B4-WEEKDAY(DATE(F1,1,1),2)-2 -> 2019-01-18 | N4: vordering opgemaakt en doorgestuurd | Q4: SBI aangekregen
Q5: Toeslag AES materialen EP < €5
M7: =SUM(M9:M19) -> 1270.06 | S7: =SUM(S9:S19) -> 0 | T7: =SUM(T9:T19) -> 1270.06
A8: Datum | B8: Interventie NR | C8: Bouw | D8: Bnr | E8: Opdrachtgever | F8: Omschrijving uitgevoerde werken | G8: Ordernummer | H8: Vordering | I8: Naam | J8: # | K8: uur | L8: Tot. uren | M8: Prijs uren | N8: Materiaal | O8: # | P8: Eenheid | Q8: Eenheidsprijs | R8: Totaal prijs | S8: Som materiaal | T8: Totaal uren en materiaal
A9: 2019-01-17 | B9: 212050 | C9: HVAC | D9: 6379 | E9: T. GURBUZ | F9: Opstarten extractie + pulsie | I9: Wim | J9: 2 | K9: uur | L9: =SUM(J9:J11) -> 5 | M9: =L9*57.73 -> 288.65 | R9: =O9*Q9 -> 0 | S9: =SUM(R9:R11) -> 0 | T9: =SUM(M9,S9) -> 288.65
I10: Jelle | J10: 2 | K10: uur | R10: =O10*Q10 -> 0
I11: Paul | J11: 1 | K11: uur | R11: 0
A12: 2019-01-17 | B12: 212096 | C12: HVAC | D12: 9271 | E12: T. GURBUZ | F12: Voorbereiden werken | I12: Jelle | J12: 1.5 | K12: uur | L12: =SUM(J12:J14) -> 4 | M12: =L12*57.73 -> 230.92 | R12: 0 | S12: =SUM(R12:R14) -> 0 | T12: =SUM(M12,S12) -> 230.92
I13: Evelien | J13: 1.5 | K13: uur | R13: 0
I14: Paul | J14: 1 | K14: uur | R14: 0
A15: 2019-01-18 | B15: 212096 | C15: HVAC | D15: 9271 | E15: T. GURBUZ | F15: Controle debiet, regelklep defect | I15: Evelien | J15: 4 | K15: uur | L15: =SUM(J15:J16) -> 8 | M15: =L15*57.73 -> 461.84 | R15: 0 | S15: =SUM(R15:R16) -> 0 | T15: =SUM(M15,S15) -> 461.84
I16: Jelle | J16: 4 | K16: uur | R16: 0
A17: 2019-01-18 | B17: 212165 | C17: HVAC | D17: 6379 | E17: T. GURBUZ | F17: Controle tocht / uitblaas - matten te plaatsen | I17: Evelien | J17: 2 | K17: uur | L17: =SUM(J17:J19) -> 5 | M17: =L17*57.73 -> 288.65 | R17: 0 | S17: =SUM(R17:R19) -> 0 | T17: =SUM(M17,S17) -> 288.65
I18: Jelle | J18: 2 | K18: uur | R18: 0
I19: Paul | J19: 1 | K19: uur | R19: 0

Sheet W4
A1: DAGRAPPORTAGE ANTWERPEN | F1: 2019
N2: nog geen ordernummer gekregen | Q2: prijs nog in te vullen door OBM
N3: vordering nog op te maken | Q3: verkeerd ordernummer
A4: WEEK: | B4: 4 | E4: =DATE(F1,1,1)+7*B4-WEEKDAY(DATE(F1,1,1),2)-6 -> 2019-01-21 | F4: =DATE(F1,1,1)+7*B4-WEEKDAY(DATE(F1,1,1),2)-2 -> 2019-01-25 | N4: vordering opgemaakt en doorgestuurd | Q4: SBI aangekregen
Q5: Toeslag AES materialen EP < €5
M7: =SUM(M9:M283) -> 0 | S7: =SUM(S9:S283) -> 0 | T7: =SUM(T9:T283) -> 0
A8: Datum | B8: Interventie NR | C8: Bouw | D8: Bnr | E8: Opdrachtgever | F8: Omschrijving uitgevoerde werken | G8: Ordernummer | H8: Vordering | I8: Naam | J8: # | K8: uur | L8: Tot. uren | M8: Prijs uren | N8: Materiaal | O8: # | P8: Eenheid | Q8: Eenheidsprijs | R8: Totaal prijs | S8: Som materiaal | T8: Totaal uren en materiaal
C9: Bouw | K9: uur | L9: =SUM(J9:J13) -> 0 | M9: =L9*57.73 -> 0 | R9: =O9*Q9 -> 0 | S9: =SUM(R9:R12) -> 0 | T9: =SUM(M9,S9) -> 0
K10: uur | R10: =O10*Q10 -> 0
K11: uur | R11: 0
K12: uur | R12: 0
K13: uur | R13: 0
C14: Bouw | K14: uur | L14: =SUM(J14:J18) -> 0 | M14: =L14*57.73 -> 0 | R14: 0 | S14: =SUM(R14:R18) -> 0 | T14: =SUM(M14,S14) -> 0
K15: uur | R15: 0
K16: uur | R16: 0
K17: uur | R17: 0
K18: uur | R18: 0
C19: Bouw | K19: uur | L19: =SUM(J19:J23) -> 0 | M19: =L19*57.73 -> 0 | R19: 0 | S19: =SUM(R19:R23) -> 0 | T19: =SUM(M19,S19) -> 0
K20: uur | R20: 0
K21: uur | R21: 0
K22: uur | R22: 0
K23: uur | R23: 0
C24: Bouw | K24: uur | L24: =SUM(J24:J28) -> 0 | M24: =L24*57.73 -> 0 | R24: 0 | S24: =SUM(R24:R28) -> 0 | T24: =SUM(M24,S24) -> 0
K25: uur | R25: 0
K26: uur | R26: 0
K27: uur | R27: 0
K28: uur | R28: 0
C29: Bouw | K29: uur | L29: =SUM(J29:J33) -> 0 | M29: =L29*57.73 -> 0 | R29: 0 | S29: =SUM(R29:R33) -> 0 | T29: =SUM(M29,S29) -> 0
K30: uur | R30: 0
K31: uur | R31: 0
K32: uur | R32: 0
K33: uur | R33: 0
C34: Bouw | K34: uur | L34: =SUM(J34:J38) -> 0 | M34: =L34*57.73 -> 0 | R34: 0 | S34: =SUM(R34:R38) -> 0 | T34: =SUM(M34,S34) -> 0
K35: uur | R35: 0
K36: uur | R36: 0
K37: uur | R37: 0
K38: uur | R38: 0
C39: Bouw | K39: uur | L39: =SUM(J39:J43) -> 0 | M39: =L39*57.73 -> 0 | R39: 0 | S39: =SUM(R39:R43) -> 0 | T39: =SUM(M39,S39) -> 0
K40: uur | R40: 0
K41: uur | R41: 0
K42: uur | R42: 0
K43: uur | R43: 0
C44: Bouw | K44: uur | L44: =SUM(J44:J48) -> 0 | M44: =L44*57.73 -> 0 | R44: 0 | S44: =SUM(R44:R48) -> 0 | T44: =SUM(M44,S44) -> 0
K45: uur | R45: 0
K46: uur | R46: 0
K47: uur | R47: 0
K48: uur | R48: 0
C49: Bouw | K49: uur | L49: =SUM(J49:J53) -> 0 | M49: =L49*57.73 -> 0 | R49: 0 | S49: =SUM(R49:R53) -> 0 | T49: =SUM(M49,S49) -> 0
K50: uur | R50: 0
K51: uur | R51: 0
K52: uur | R52: 0
K53: uur | R53: 0
C54: Bouw | K54: uur | L54: =SUM(J54:J58) -> 0 | M54: =L54*57.73 -> 0 | R54: 0 | S54: =SUM(R54:R58) -> 0 | T54: =SUM(M54,S54) -> 0
K55: uur | R55: 0
K56: uur | R56: 0
K57: uur | R57: 0
K58: uur | R58: 0
C59: Bouw | K59: uur | L59: =SUM(J59:J63) -> 0 | M59: =L59*57.73 -> 0 | R59: 0 | S59: =SUM(R59:R63) -> 0 | T59: =SUM(M59,S59) -> 0
K60: uur | R60: 0
K61: uur | R61: 0
K62: uur | R62: 0
K63: uur | R63: 0
C64: Bouw | K64: uur | L64: =SUM(J64:J68) -> 0 | M64: =L64*57.73 -> 0 | R64: 0 | S64: =SUM(R64:R68) -> 0 | T64: =SUM(M64,S64) -> 0
K65: uur | R65: 0
K66: uur | R66: 0
K67: uur | R67: 0
K68: uur | R68: 0
C69: Bouw | K69: uur | L69: =SUM(J69:J73) -> 0 | M69: =L69*57.73 -> 0 | R69: 0 | S69: =SUM(R69:R73) -> 0 | T69: =SUM(M69,S69) -> 0
K70: uur | R70: 0
K71: uur | R71: 0
K72: uur | R72: 0
K73: uur | R73: 0
C74: Bouw | K74: uur | L74: =SUM(J74:J78) -> 0 | M74: =L74*57.73 -> 0 | R74: =O74*Q74 -> 0 | S74: =SUM(R74:R78) -> 0 | T74: =SUM(M74,S74) -> 0
K75: uur | R75: 0
K76: uur | R76: 0
K77: uur | R77: 0
K78: uur | R78: 0
C79: Bouw | K79: uur | L79: =SUM(J79:J83) -> 0 | M79: =L79*57.73 -> 0 | R79: 0 | S79: =SUM(R79:R83) -> 0 | T79: =SUM(M79,S79) -> 0
K80: uur | R80: 0
K81: uur | R81: 0
K82: uur | R82: 0
K83: uur | R83: 0
C84: Bouw | K84: uur | L84: =SUM(J84:J88) -> 0 | M84: =L84*57.73 -> 0 | R84: 0 | S84: =SUM(R84:R88) -> 0 | T84: =SUM(M84,S84) -> 0
K85: uur | R85: 0
K86: uur | R86: 0
K87: uur | R87: 0
K88: uur | R88: 0
C89: Bouw | K89: uur | L89: =SUM(J89:J93) -> 0 | M89: =L89*57.73 -> 0 | R89: 0 | S89: =SUM(R89:R93) -> 0 | T89: =SUM(M89,S89) -> 0
K90: uur | R90: 0
K91: uur | R91: 0
K92: uur | R92: 0
K93: uur | R93: 0
C94: Bouw | K94: uur | L94: =SUM(J94:J98) -> 0 | M94: =L94*57.73 -> 0 | R94: 0 | S94: =SUM(R94:R98) -> 0 | T94: =SUM(M94,S94) -> 0
K95: uur | R95: 0
K96: uur | R96: 0
K97: uur | R97: 0
K98: uur | R98: 0
C99: Bouw | K99: uur | L99: =SUM(J99:J103) -> 0 | M99: =L99*57.73 -> 0 | R99: 0 | S99: =SUM(R99:R103) -> 0 | T99: =SUM(M99,S99) -> 0
K100: uur | R100: 0
K101: uur | R101: 0
K102: uur | R102: 0
K103: uur | R103: 0
C104: Bouw | K104: uur | L104: =SUM(J104:J108) -> 0 | M104: =L104*57.73 -> 0 | R104: 0 | S104: =SUM(R104:R108) -> 0 | T104: =SUM(M104,S104) -> 0
K105: uur | R105: 0
K106: uur | R106: 0
K107: uur | R107: 0
K108: uur | R108: 0
C109: Bouw | K109: uur | L109: =SUM(J109:J113) -> 0 | M109: =L109*57.73 -> 0 | R109: 0 | S109: =SUM(R109:R113) -> 0 | T109: =SUM(M109,S109) -> 0
K110: uur | R110: 0
K111: uur | R111: 0
K112: uur | R112: 0
K113: uur | R113: 0
C114: Bouw | K114: uur | L114: =SUM(J114:J118) -> 0 | M114: =L114*57.73 -> 0 | R114: 0 | S114: =SUM(R114:R118) -> 0 | T114: =SUM(M114,S114) -> 0
K115: uur | R115: 0
K116: uur | R116: 0
K117: uur | R117: 0
K118: uur | R118: 0
C119: Bouw | K119: uur | L119: =SUM(J119:J123) -> 0 | M119: =L119*57.73 -> 0 | R119: 0 | S119: =SUM(R119:R123) -> 0 | T119: =SUM(M119,S119) -> 0
K120: uur | R120: 0
K121: uur | R121: 0
K122: uur | R122: 0
K123: uur | R123: 0
C124: Bouw | K124: uur | L124: =SUM(J124:J128) -> 0 | M124: =L124*57.73 -> 0 | R124: 0 | S124: =SUM(R124:R128) -> 0 | T124: =SUM(M124,S124) -> 0
K125: uur | R125: 0
K126: uur | R126: 0
K127: uur | R127: 0
K128: uur | R128: 0
C129: Bouw | K129: uur | L129: =SUM(J129:J133) -> 0 | M129: 0 | R129: 0 | S129: =SUM(R129:R133) -> 0 | T129: =SUM(M129,S129) -> 0
K130: uur | R130: 0
K131: uur | R131: 0
K132: uur | R132: 0
K133: uur | R133: 0
C134: Bouw | K134: uur | L134: =SUM(J134:J138) -> 0 | M134: 0 | R134: 0 | S134: =SUM(R134:R138) -> 0 | T134: =SUM(M134,S134) -> 0
K135: uur | R135: 0
K136: uur | R136: 0
K137: uur | R137: 0
K138: uur | R138: =O138*Q138 -> 0
C139: Bouw | K139: uur | L139: =SUM(J139:J143) -> 0 | M139: 0 | R139: 0 | S139: =SUM(R139:R143) -> 0 | T139: =SUM(M139,S139) -> 0
K140: uur | R140: 0
K141: uur | R141: 0
K142: uur | R142: 0
K143: uur | R143: 0
C144: Bouw | K144: uur | L144: 0 | M144: =L144*57.73 -> 0 | R144: 0 | S144: 0 | T144: 0
K145: uur | R145: 0
K146: uur | R146: 0
K147: uur | R147: 0
K148: uur | R148: 0
C149: Bouw | K149: uur | L149: 0 | M149: =L149*57.73 -> 0 | R149: 0 | S149: 0 | T149: 0
K150: uur | R150: 0
K151: uur | R151: 0
K152: uur | R152: 0
K153: uur | R153: 0
C154: Bouw | K154: uur | L154: 0 | M154: =L154*57.73 -> 0 | R154: 0 | S154: 0 | T154: 0
K155: uur | R155: 0
K156: uur | R156: 0
K157: uur | R157: 0
K158: uur | R158: 0
C159: Bouw | K159: uur | L159: 0 | M159: =L159*57.73 -> 0 | R159: 0 | S159: 0 | T159: 0
K160: uur | R160: 0
K161: uur | R161: 0
K162: uur | R162: 0
K163: uur | R163: 0
C164: Bouw | K164: uur | L164: 0 | M164: =L164*57.73 -> 0 | R164: 0 | S164: 0 | T164: 0
K165: uur | R165: 0
K166: uur | R166: 0
K167: uur | R167: 0
K168: uur | R168: 0
C169: Bouw | K169: uur | L169: 0 | M169: =L169*57.73 -> 0 | R169: 0 | S169: 0 | T169: 0
K170: uur | R170: 0
K171: uur | R171: 0
K172: uur | R172: 0
K173: uur | R173: 0
C174: Bouw | K174: uur | L174: 0 | M174: =L174*57.73 -> 0 | R174: 0 | S174: 0 | T174: 0
K175: uur | R175: 0
K176: uur | R176: 0
K177: uur | R177: 0
K178: uur | R178: 0
C179: Bouw | K179: uur | L179: =SUM(J179:J183) -> 0 | M179: =L179*57.73 -> 0 | R179: 0 | S179: =SUM(R179:R183) -> 0 | T179: =SUM(M179,S179) -> 0
K180: uur | R180: 0
K181: uur | R181: 0
K182: uur | R182: 0
K183: uur | R183: 0
C184: Bouw | K184: uur | L184: =SUM(J184:J188) -> 0 | M184: =L184*57.73 -> 0 | R184: 0 | S184: =SUM(R184:R188) -> 0 | T184: =SUM(M184,S184) -> 0
K185: uur | R185: 0
K186: uur | R186: 0
K187: uur | R187: 0
K188: uur | R188: 0
C189: Bouw | K189: uur | L189: =SUM(J189:J193) -> 0 | M189: =L189*57.73 -> 0 | R189: 0 | S189: =SUM(R189:R193) -> 0 | T189: =SUM(M189,S189) -> 0
K190: uur | R190: 0
K191: uur | R191: 0
K192: uur | R192: 0
K193: uur | R193: 0
C194: Bouw | K194: uur | L194: =SUM(J194:J198) -> 0 | M194: =L194*57.73 -> 0 | R194: 0 | S194: =SUM(R194:R198) -> 0 | T194: =SUM(M194,S194) -> 0
K195: uur | R195: 0
K196: uur | R196: 0
K197: uur | R197: 0
K198: uur | R198: 0
C199: Bouw | K199: uur | L199: =SUM(J199:J203) -> 0 | M199: =L199*57.73 -> 0 | R199: 0 | S199: =SUM(R199:R203) -> 0 | T199: =SUM(M199,S199) -> 0
K200: uur | R200: 0
K201: uur | R201: 0
... 82 more rows
